bitfinex/quotes_ETHUSD_20251221
["timestamp","ask_amount","ask_price","bid_price","bid_amount"]
[1766309539405,0.002,3000.9,3000.6,1.4085]
[1766309540896,3.76666846,3001.5,3001.1,1.4085]
[1766309540897,4.15968962,3001.5,3001.1,1.4085]
[1766309541098,4.15968962,3001.3,3000.8,0.436]
[1766309541303,4.53655647,3001.5,3000.8,0.436]
[1766309541470,0.397,3001.3,3000.7,1.0294]
[1766309541677,1.3656,3001.3,3000.8,0.436]
[1766309542404,1.3656,3001.3,3000.7,1.4085]
[1766309542718,1.3656,3001.3,3000.8,0.436]
[1766309543217,0.397,3001.2,3000.7,1.4085]
[1766309543420,0.435,3001.5,3000.8,1.0294]
[1766309543601,0.435,3001.5,3001.0,1.4085]
[1766309543814,1.3656,3001.6,3001.0,1.4085]
[1766309544322,5.51709928,3001.4,3000.7,0.436]
[1766309544622,3.33158896,3001.6,3000.8,0.3585]
[1766309544623,0.83900729,3001.5,3000.8,0.3585]
[1766309544821,0.3691,3001.5,3000.9,0.3585]
[1766309544979,0.3691,3001.5,3001.0,0.9883]
[1766309545402,1.3321,3001.5,3001.0,0.9883]
[1766309545604,0.963,3001.3,3000.7,1.7828]
[1766309545809,4.15149928,3001.5,3001.0,0.9883]
[1766309545990,0.3333696,3001.4,3001.0,0.9883]
[1766309546503,4.15149928,3001.5,3001.0,1.3468]
[1766309546708,1.3341,3001.6,3001.0,1.3468]
[1766309547008,1.3341,3001.6,3001.0,0.9883]
[1766309547304,1.3341,3001.6,3001.1,0.9883]
[1766309547810,4.66566998,3001.6,3001.1,0.9883]
[1766309547997,5.9242214,3001.6,3001.1,0.9883]
[1766309548584,5.48359928,3001.5,3001.0,0.3585]
[1766309548791,0.3691,3001.2,3000.9,0.436]
[1766309549710,5.11449928,3001.3,3000.9,0.436]
[1766309549881,5.48359928,3001.1,3000.7,0.436]
[1766309551110,4.15149928,3001.5,3000.4,3.33288805]
[1766309551312,1.3321,3001.3,3000.4,3.33288805]
[1766309551501,1.3321,3001.3,3000.5,0.436]
[1766309552103,1.3321,3001.3,3000.5,3.76877287]
[1766309552703,1.3321,3001.3,3000.5,3.76977287]
[1766309552905,1.3321,3001.3,3000.6,0.37697729]
[1766309554609,4.15349928,3001.4,3000.6,0.37697729]
[1766309554813,1.3321,3001.3,3000.6,0.37697729]
[1766309555814,1.3321,3001.3,3000.7,0.436]
[1766309556816,1.3582,3001.3,3000.7,0.436]
[1766309557184,7.48529155,3001.4,3000.6,0.37697729]
[1766309557390,1.3703,3001.1,3000.7,0.436]
[1766309558314,4.15149928,3001.0,3000.7,0.436]
[1766309558498,5.14059928,3001.0,3000.6,0.436]
[1766309558698,0.9891,3001.0,3000.6,0.436]
[1766309560321,4.1541779,3001.4,3000.6,0.436]
[1766309560618,5.5244779,3001.4,3000.6,0.81298016]
[1766309560797,1.3703,3001.3,3000.6,0.81298016]
[1766309561425,7.48597342,3001.4,3000.6,0.81298016]
[1766309561593,1.3703,3001.1,3000.6,0.436]
[1766309562021,1.3703,3001.1,3000.5,0.001]
[1766309562232,1.3703,3001.1,3000.6,0.436]
[1766309563686,0.002,3001.4,3000.6,0.436]
[1766309564028,1.3723,3001.4,3000.6,0.436]
[1766309564216,1.3723,3001.4,3000.7,0.37697594]
[1766309564618,0.002,3001.4,3000.7,0.37697594]
[1766309564824,1.3703,3001.3,3000.7,0.436]
[1766309565009,0.002,3001.4,3000.7,0.436]
[1766309565194,1.3703,3001.3,3000.7,0.436]
[1766309565624,0.9891,3001.2,3000.6,0.56948929]
[1766309565826,1.3703,3001.2,3000.6,0.56948929]
[1766309567799,1.3703,3001.2,3000.6,0.82633149]
[1766309569798,1.3703,3001.2,3000.6,4.15899578]
[1766309569998,1.3703,3001.2,3000.6,0.82633149]
[1766309571000,0.002,3001.3,3000.6,4.15898666]
[1766309571506,0.9911,3001.3,3000.6,4.15898666]
[1766309571810,1.3723,3001.3,3000.7,0.41599867]
[1766309572000,0.002,3001.3,3000.7,0.41599867]
[1766309573130,0.002,3001.3,3000.7,3.74854174]
[1766309573330,0.002,3001.6,3000.8,0.03332444]
[1766309573519,0.002,3001.6,3000.7,7.08109747]
[1766309573730,0.002,3001.6,3000.8,0.5134843]
[1766309575423,0.002,3001.6,3000.8,3.84589297]
[1766309576639,1.3723,3001.6,3000.8,0.5134843]
[1766309576842,1.3703,3001.4,3000.9,0.436]
[1766309577013,4.1875726,3001.6,3000.5,0.001]
[1766309577213,0.9891,3001.3,3000.6,0.436]
[1766309577525,1.3703,3001.3,3000.5,3.33375728]
[1766309577735,1.3703,3001.3,3000.7,0.436]
[1766309579313,1.3703,3001.3,3000.8,0.37686654]
[1766309579516,1.3703,3001.3,3000.8,0.436]
[1766309580510,0.9891,3001.5,3000.8,0.436]
[1766309581250,0.9891,3001.5,3000.7,3.33247195]
[1766309581436,0.9891,3001.5,3000.8,0.436]
[1766309581629,1.3703,3001.5,3000.8,0.436]
[1766309581818,4.1541779,3001.6,3000.5,0.001]
[1766309582018,0.9891,3001.0,3000.5,0.001]
[1766309582235,1.3703,3000.9,3000.5,0.437]
[1766309582481,0.9891,3001.1,3000.5,0.001]
[1766309582644,1.3703,3000.9,3000.5,0.001]
[1766309583049,0.9891,3000.8,3000.5,0.001]
[1766309583231,1.3703,3000.8,3000.5,0.001]
[1766309584453,3.33212252,3001.1,3000.5,0.001]
[1766309584753,1.3703,3000.6,3000.2,0.436]
[1766309585252,1.3703,3000.6,2999.5,6.66872009]
[1766309585455,0.4101,3000.7,2999.6,0.436]
[1766309585617,0.4101,3000.6,2999.6,0.436]
[1766309585821,1.0533,3000.5,2999.6,0.436]
[1766309586249,1.0533,3000.5,2999.7,0.436]
[1766309586852,1.4634,3000.5,2999.8,0.436]
[1766309587954,1.4634,3000.5,2999.7,3.33364496]
[1766309588259,1.4634,3000.5,2999.8,0.436]
[1766309588551,3.33257086,3000.7,2999.8,0.37697363]
[1766309588782,0.4101,3000.5,2999.5,0.001]
[1766309589062,1.4634,3000.2,2999.5,0.001]
[1766309589234,1.4634,3000.2,2999.6,0.436]
[1766309589430,7.48485692,3000.6,2999.6,0.436]
[1766309589669,1.0533,3000.5,2999.6,0.436]
[1766309589860,1.0533,3000.3,2999.6,0.436]
[1766309590069,1.4634,3000.2,2999.6,0.436]
[1766309590968,7.4839564,3001.4,2999.7,0.03333666]
[1766309591167,7.4839564,3001.4,2999.8,0.436]
[1766309591349,0.76668864,3001.3,2999.8,0.436]
[1766309592070,7.92088337,3001.5,2999.9,0.03333444]
[1766309592641,0.002,3001.2,3000.3,4.1521779]
[1766309592978,0.002,3001.5,3000.5,6.66555574]
[1766309593146,0.002,3001.7,3000.6,4.18550456]
[1766309593467,1.42388684,3002.0,3000.6,4.18550456]
[1766309593770,1.42388684,3002.0,3000.6,4.1521779]
[1766309594672,0.8471,3002.2,3000.6,4.1521779]
[1766309595266,1.9004,3002.2,3000.7,9.99766719]
[1766309596169,0.002,3002.5,3000.8,3.517]
[1766309596340,0.002,3002.5,3001.1,4.1521779]
[1766309596940,0.002,3002.5,3001.1,4.18549901]
[1766309597135,0.002,3002.5,3001.2,6.66400106]
[1766309597362,0.002,3002.5,3001.2,10.81617896]
[1766309598267,0.002,3002.5,3001.2,14.14817949]
[1766309599573,0.42316795,3003.5,3001.9,4.1521779]
[1766309599749,3.75263849,3003.5,3002.0,0.436]
[1766309600274,0.01306795,3003.5,3002.5,4.1521779]
[1766309600474,4.1521779,3003.7,3002.6,0.03330446]
[1766309600682,4.1521779,3003.4,3002.7,0.436]
[1766309600865,0.41521779,3003.3,3002.8,0.436]
[1766309601068,1.00035846,3004.3,3002.8,0.436]
[1766309601245,4.1521779,3004.0,3002.8,0.436]
[1766309601441,3.32900562,3003.9,3002.3,6.66155946]
[1766309601667,4.1521779,3003.6,3002.4,0.436]
[1766309601944,4.1521779,3003.4,3002.3,3.33077973]
[1766309602185,5.6155779,3003.4,3001.8,6.799641]
[1766309602344,4.1521779,3003.3,3001.9,0.46931223]
[1766309602674,4.1521779,3003.3,3002.2,3.33080779]
[1766309603177,5.2054779,3003.2,3002.3,0.436]
[1766309603356,0.52054779,3003.1,3002.3,0.436]
[1766309603866,0.52054779,3003.1,3002.3,3.76676155]
[1766309604368,0.52054779,3003.1,3002.2,3.33081874]
[1766309604570,0.4101,3003.4,3002.4,0.436]
[1766309604742,4.1521779,3003.6,3002.5,0.46930557]
[1766309605378,1.013,3003.8,3002.5,0.46930557]
[1766309605578,4.1521779,3003.7,3002.5,0.436]
[1766309605874,4.1521779,3003.7,3002.6,0.436]
[1766309606173,0.8494329,3003.6,3002.6,0.7097191]
[1766309606478,4.1521779,3003.7,3002.6,0.7097191]
[1766309606661,4.1521779,3003.7,3002.7,0.436]
[1766309606662,1.013,3003.6,3002.7,0.436]
[1766309607169,4.1521779,3003.7,3002.8,0.436]
[1766309607602,1.013,3003.9,3002.8,0.436]
[1766309607804,1.013,3003.9,3002.8,3.33020919]
[1766309607978,1.013,3003.9,3002.6,4.04012201]
[1766309607979,7.66615435,3003.8,3002.9,0.436]
[1766309608361,4.3370379,3003.8,3002.9,0.436]
[1766309609093,1.59846,3003.8,3002.9,0.436]
[1766309609289,1.60046,3003.8,3002.9,0.436]
[1766309609488,0.18686,3003.8,3003.0,0.436]
[1766309611325,5.5657779,3003.6,3003.1,0.436]
[1766309611611,3.33113345,3003.8,3003.1,0.436]
[1766309611612,0.002,3003.8,3003.1,0.436]
[1766309612078,0.002,3003.8,3003.1,3.76583921]
[1766309612275,5.5657779,3004.1,3003.1,0.436]
[1766309612502,5.5657779,3004.1,3002.2,0.39122319]
[1766309612503,5.5657779,3003.8,3002.4,0.03330668]
[1766309612715,1.97017779,3003.7,3002.5,3.76653709]
[1766309612901,1.97017779,3003.7,3002.8,3.33015375]
[1766309613223,1.4136,3003.9,3002.9,3.33010817]
[1766309613427,4.1521779,3004.1,3003.1,3.32988063]
[1766309613595,4.1521779,3004.1,3003.0,3.79925039]
[1766309613596,1.4136,3004.0,3003.0,3.79925039]
[1766309613787,3.32870037,3004.2,3003.0,3.76598544]
[1766309613988,0.0333947,3004.1,3002.2,7.87424777]
[1766309614327,1.4136,3003.7,3002.8,3.3302154]
[1766309614526,1.4136,3003.7,3002.9,0.436]
[1766309614698,4.82125744,3004.0,3002.8,3.33014545]
[1766309615015,1.4136,3003.9,3003.0,3.33000061]
[1766309615316,4.82125744,3004.0,3002.9,0.436]
[1766309615507,1.4753,3003.8,3002.7,3.33029578]
[1766309615815,1.4753,3003.8,3003.0,0.436]
[1766309617511,0.48212574,3003.9,3003.0,0.436]
[1766309617890,0.48212574,3003.9,3003.1,0.436]
[1766309618091,1.4753,3003.8,3002.6,3.33043363]
[1766309618292,1.4753,3003.9,3002.7,0.436]
[1766309618531,1.4753,3003.8,3002.7,0.436]
[1766309618702,0.002,3003.9,3002.7,0.436]
[1766309618896,0.002,3003.9,3002.8,0.70968806]
[1766309620190,0.002,3003.9,3002.9,3.33011422]
[1766309620401,1.4753,3003.8,3003.0,0.435]
[1766309621225,0.002,3003.9,3003.1,0.435]
[1766309622102,0.002,3003.9,3003.2,3.32978156]
[1766309622307,0.002,3003.9,3003.1,3.76485854]
[1766309622514,0.56417941,3003.9,3003.1,0.435]
[1766309622822,0.56417941,3003.9,3003.1,3.76488019]
[1766309623022,0.002,3003.9,3003.1,3.32988019]
[1766309623331,1.4753,3003.7,3003.2,0.435]
[1766309623635,0.002,3003.9,3003.2,0.435]
[1766309624331,0.002,3003.9,3003.2,3.76467499]
[1766309624532,0.002,3003.9,3003.2,7.09445655]
[1766309624711,0.002,3003.9,3003.2,3.76467499]
[1766309625228,3.32846809,3004.4,3003.2,3.76467499]
[1766309625229,4.80376809,3004.4,3003.2,3.76467499]
[1766309625433,4.14449406,3004.2,3003.2,3.76467499]
[1766309625600,4.14449406,3004.0,3003.2,3.32967499]
[1766309625930,4.14449406,3004.0,3003.3,0.435]
[1766309626243,0.41444941,3004.1,3003.4,3.32955983]
[1766309626532,0.002,3003.9,3003.4,3.32955983]
[1766309626730,1.4753,3004.3,3003.3,3.76463026]
[1766309627253,4.14449406,3004.2,3003.3,0.435]
[1766309627732,4.14449406,3004.2,3003.3,3.76465086]
[1766309628220,4.14449406,3004.2,3003.3,0.435]
[1766309628421,0.89483659,3004.1,3003.3,3.76465902]
[1766309629002,1.4753,3004.2,3003.3,3.76465902]
[1766309629203,1.4753,3004.2,3003.0,0.001]
[1766309629398,1.4753,3004.2,3003.1,0.435]
[1766309629625,4.14449406,3004.3,3003.0,0.001]
[1766309629930,4.14449406,3003.8,3003.1,0.435]
[1766309630130,4.14649406,3004.8,3003.1,0.435]
[1766309630336,1.4753,3004.1,3003.2,3.32975171]
[1766309630530,1.4753,3004.1,3003.2,3.76475171]
[1766309630531,0.4338,3004.0,3003.2,3.76475171]
[1766309630835,1.4753,3004.0,3003.2,3.76475171]
[1766309631939,4.14449406,3004.2,3003.2,3.76475171]
[1766309632128,1.4753,3004.1,3003.2,3.76475171]
[1766309632434,2.03727941,3004.1,3003.2,3.76475171]
[1766309633445,0.56197941,3004.1,3003.2,7.09453327]
[1766309633850,0.56197941,3004.1,3003.2,3.76475171]
[1766309634045,0.56197941,3004.1,3003.3,0.435]
[1766309634610,5.61979406,3003.9,3003.4,0.435]
[1766309634810,5.61979406,3003.9,3003.1,3.32985334]
[1766309635045,5.61979406,3003.9,3003.2,0.435]
[1766309635414,4.14449406,3003.7,3003.3,0.435]
[1766309637427,4.14449406,3003.7,3003.4,0.435]
[1766309637673,6.18177347,3003.7,3003.5,0.435]
[1766309637835,6.18177347,3003.7,3003.4,0.435]
[1766309638232,4.14449406,3003.5,3003.0,0.001]
[1766309638547,5.18599406,3003.2,3003.1,0.435]
[1766309639567,4.57829406,3003.4,3003.1,0.435]
[1766309639741,5.61979406,3003.4,3003.1,0.435]
[1766309639918,5.18599406,3003.4,3003.1,0.435]
[1766309640951,1.4753,3003.4,3003.1,0.435]
[1766309641447,1.4753,3004.0,3003.1,3.76488508]
[1766309641632,5.61979406,3004.0,3003.1,4.14147685]
[1766309641836,4.14449406,3004.2,3003.1,7.47136929]
[1766309643045,4.14449406,3003.9,3003.1,3.70647685]
[1766309643253,5.61979406,3003.9,3003.2,0.435]
[1766309643850,5.61979406,3003.9,3003.2,4.5119738]
[1766309644019,1.4753,3003.8,3003.2,3.32972694]
[1766309644221,4.14449406,3003.9,3003.3,0.435]
[1766309644439,4.14449406,3003.9,3003.2,3.32972694]
[1766309644642,4.14449406,3003.7,3003.0,3.33096077]
[1766309644958,1.5786,3003.6,3003.2,3.32977209]
[1766309645190,0.434,3004.4,3003.2,3.32977209]
[1766309645191,1.5786,3004.1,3003.2,3.32977209]
[1766309645317,5.72309406,3004.1,3003.2,3.32977209]
[1766309645515,2.15090941,3004.0,3003.2,3.32977209]
[1766309645930,1.5786,3003.9,3003.3,1.00028174]
[1766309646427,1.5786,3003.6,3003.1,3.76485805]
[1766309647225,1.5786,3003.6,3003.2,1.00028174]
[1766309647436,1.5786,3003.6,3003.2,1.43528174]
[1766309647648,2.15090941,3003.6,3003.2,0.435]
[1766309648258,2.15090941,3003.6,3003.1,1.00028174]
[1766309648554,1.5786,3003.5,3003.1,1.00028174]
[1766309648755,1.5786,3003.5,3003.2,0.435]
[1766309649525,1.5786,3003.5,3003.1,1.00028174]
[1766309649738,1.5786,3003.5,3003.2,0.435]
[1766309652328,1.5786,3003.5,3003.3,0.435]
[1766309652532,1.104,3003.7,3003.1,0.001]
[1766309652844,1.5786,3003.4,3003.1,0.001]
[1766309653027,0.4746,3003.3,3003.0,0.436]
[1766309653228,1.5786,3003.3,3003.0,0.436]
[1766309653928,1.104,3003.8,3003.0,0.436]
[1766309654128,0.76642132,3003.8,3003.0,0.436]
[1766309654366,1.104,3003.7,3003.0,0.436]
[1766309654527,0.76642132,3003.8,3003.0,3.76599204]
[1766309654725,1.104,3003.9,3003.0,3.76599204]
[1766309654930,1.104,3003.9,3003.0,8.91078452]
[1766309655239,1.104,3003.9,3003.0,4.76629046]
[1766309655440,1.104,3003.9,3003.0,8.91078452]
[1766309655641,1.104,3003.9,3003.0,8.09629379]
[1766309655831,1.5786,3003.9,3003.0,5.57591984]
[1766309656541,1.5786,3003.9,3003.0,13.05041723]
[1766309656842,1.5786,3003.9,3003.0,9.7204139]
[1766309657662,1.5786,3003.9,3003.0,5.57591984]
[1766309659373,1.5786,3003.9,3003.0,13.05041723]
[1766309659542,1.5786,3003.9,3003.0,9.7204139]
[1766309659741,1.5786,3003.9,3003.1,1.30505128]
[1766309661164,1.5786,3003.9,3003.2,3.32978156]
[1766309663470,1.5786,3003.9,3003.2,4.33006664]
[1766309664464,1.5432,3004.2,3003.2,4.33006664]
[1766309664644,1.5452,3004.1,3003.2,3.32978156]
[1766309664849,1.5452,3004.1,3003.3,1.00019837]
[1766309665056,1.5452,3004.1,3003.4,0.435]
[1766309665281,1.5452,3004.1,3003.4,3.76454114]
[1766309665658,1.5452,3004.1,3003.4,4.76473951]
[1766309666157,1.5432,3004.0,3003.5,0.435]
[1766309667277,1.5432,3004.0,3003.4,1.00019837]
[1766309667478,1.5432,3004.0,3003.6,0.435]
[1766309667652,1.5432,3004.0,3003.4,1.00019837]
[1766309667859,1.5432,3004.0,3003.5,0.435]
[1766309668657,0.002,3004.1,3003.5,0.435]
[1766309668851,1.5452,3004.1,3003.5,0.435]
[1766309669363,3.32835597,3004.5,3003.5,0.435]
[1766309669568,4.14449406,3004.6,3003.5,0.435]
[1766309669569,1.0739,3004.6,3003.6,0.435]
[1766309669768,1.0739,3004.4,3003.6,0.435]
[1766309669976,1.0739,3004.2,3003.6,0.435]
[1766309670183,1.5432,3004.2,3003.6,0.435]
[1766309670692,1.5432,3004.2,3003.5,3.32942465]
[1766309670871,1.5432,3004.2,3003.7,0.435]
[1766309671895,1.5432,3004.5,3003.7,0.435]
[1766309672057,1.56105284,3004.4,3003.7,0.435]
[1766309672265,2.03035284,3004.4,3003.7,0.435]
[1766309672863,1.5432,3004.4,3003.7,3.76422408]
[1766309673289,1.5432,3004.4,3003.7,0.435]
[1766309675396,3.32834403,3004.5,3003.7,0.435]
[1766309675595,1.0801,3004.2,3003.8,0.435]
[1766309675795,1.5655,3004.0,3003.8,0.435]
[1766309676166,1.5655,3004.0,3003.4,4.32972296]
[1766309676368,1.5655,3004.0,3003.7,0.435]
[1766309677764,1.5655,3004.3,3003.7,0.435]
[1766309677969,1.0801,3004.1,3003.7,0.435]
[1766309678279,0.4854,3004.2,3003.7,0.435]
[1766309678478,1.0801,3004.1,3003.7,0.435]
[1766309678690,0.0353947,3004.4,3003.7,0.435]
[1766309678691,1.5655,3004.0,3003.7,0.435]
[1766309679890,1.5655,3004.0,3003.6,0.435]
[1766309680696,0.4854,3004.2,3003.4,1.00019837]
[1766309680869,0.4854,3003.8,3003.4,0.435]
[1766309681069,1.5655,3003.7,3003.1,3.33082512]
[1766309681270,1.5655,3003.7,3003.2,3.76477983]
[1766309681810,1.5655,3004.0,3003.2,0.435]
[1766309681995,1.5655,3003.9,3003.2,0.435]
[1766309682375,1.5655,3003.9,3003.3,3.32966053]
[1766309684148,1.5655,3003.9,3003.2,3.76475532]
[1766309684318,1.0801,3003.9,3003.2,0.435]
[1766309684643,1.0801,3003.7,3003.3,0.435]
[1766309684799,1.0801,3003.7,3003.2,3.32976539]
[1766309684800,1.5655,3003.7,3003.2,3.32976539]
[1766309685132,1.5655,3003.7,3003.2,3.3297768]
[1766309685342,1.5655,3003.7,3003.3,0.435]
[1766309685637,0.002,3003.9,3003.3,3.76465544]
[1766309686004,1.5675,3003.9,3003.3,3.76465544]
[1766309688416,0.002,3003.9,3003.3,7.90390013]
[1766309688721,0.002,3003.9,3003.3,4.57422944]
[1766309688922,0.002,3003.9,3003.4,1.0002017]
[1766309689732,0.002,3003.9,3003.4,4.32975768]
[1766309689954,0.002,3003.9,3003.4,1.89061072]
[1766309690456,0.002,3003.9,3003.5,0.435]
[1766309691949,0.002,3003.9,3003.5,3.76435222]
[1766309693129,0.002,3003.9,3003.5,0.435]
[1766309694160,0.002,3003.9,3003.5,3.76444736]
[1766309694364,1.5655,3004.3,3003.5,4.24101627]
[1766309694547,1.5675,3004.4,3003.5,3.76444736]
[1766309694866,1.5655,3004.3,3003.5,3.76444736]
[1766309695065,0.002,3004.4,3003.5,3.76444736]
[1766309695429,1.5655,3004.3,3003.5,3.76444736]
[1766309695732,7.47291879,3004.9,3003.5,3.76444736]
[1766309695733,3.32590547,3006.7,3004.1,11.173632]
[1766309695959,1.09011067,3006.1,3004.0,4.14500231]
[1766309696161,0.4854,3005.6,3004.3,10.80212709]
[1766309696486,0.01001067,3005.0,3004.4,1.08354138]
[1766309696624,0.4854,3004.7,3004.1,0.99978171]
[1766309696959,0.4854,3004.5,3003.6,0.80952279]
[1766309697127,0.4854,3004.3,3003.4,0.001]
[1766309697326,0.4854,3003.7,3003.4,0.001]
[1766309697645,0.4854,3004.0,3003.1,0.436]
[1766309697957,0.4854,3004.0,3003.0,0.001]
[1766309697958,0.01001067,3003.9,3003.0,0.001]
[1766309698251,0.4854,3004.0,3003.1,0.435]
[1766309698455,0.4854,3004.0,3003.1,0.81160001]
[1766309698625,0.4854,3003.8,3003.1,0.81160001]
[1766309698827,1.5655,3003.8,3003.1,0.81160001]
[1766309699240,1.5655,3003.8,3003.2,0.435]
[1766309699440,0.01001067,3004.2,3003.2,0.435]
[1766309699640,1.5655,3004.7,3003.3,5.91865547]
[1766309699861,1.5655,3004.7,3003.3,5.95195217]
[1766309700045,2.0005,3005.1,3003.4,30.0]
[1766309700358,3.32690132,3005.8,3003.9,9.98701686]
[1766309700545,1.5655,3005.6,3004.0,0.46828894]
[1766309700744,0.4854,3005.7,3004.0,0.46828894]
[1766309700945,1.5655,3005.5,3004.1,0.99984835]
[1766309701160,7.09761057,3005.9,3004.1,0.99984835]
[1766309701361,1.5655,3005.7,3004.2,0.435]
[1766309701550,0.4854,3005.5,3004.3,0.435]
[1766309701756,1.0801,3005.4,3004.3,0.435]
[1766309701932,0.002,3005.4,3004.3,0.435]
[1766309702132,0.002,3005.4,3004.2,3.32867319]
[1766309702337,0.002,3005.4,3004.3,1.20071981]
[1766309702958,1.5675,3005.4,3004.3,1.20071981]
[1766309703160,0.4854,3004.8,3003.0,0.001]
[1766309703471,1.5655,3004.6,3003.8,3.32909528]
[1766309703768,1.5655,3004.6,3003.9,0.435]
[1766309703951,1.5655,3004.6,3003.9,3.76399721]
[1766309704153,1.5655,3004.6,3004.0,0.37639972]
[1766309704347,3.3377532,3005.1,3003.9,3.7640004]
[1766309704547,1.5655,3004.9,3003.9,0.435]
[1766309704950,1.0681,3005.0,3003.7,3.32919497]
[1766309705273,1.5493,3004.6,3003.8,0.435]
[1766309705458,1.5493,3004.6,3003.8,4.14053555]
[1766309705790,0.4812,3004.0,3003.5,1.00002166]
[1766309705950,1.5493,3003.7,3002.6,3.33044234]
[1766309706144,1.5493,3003.7,3003.1,0.435]
[1766309706476,1.5493,3003.7,3003.0,0.436]
[1766309706661,1.5493,3003.7,3003.0,3.76600231]
[1766309706988,1.5493,3003.7,3003.0,0.37760023]
[1766309707163,0.4812,3003.4,3003.0,0.001]
[1766309707879,3.3292432,3003.7,3003.0,0.001]
[1766309707880,1.0681,3003.8,3003.0,0.001]
[1766309708285,1.5493,3003.8,3003.0,0.001]
[1766309708493,1.5493,3003.8,3003.4,0.001]
[1766309708640,1.99985588,3003.8,3003.4,0.001]
[1766309709035,1.5493,3003.8,3003.4,0.001]
[1766309710697,0.01001067,3003.5,3002.0,0.001]
[1766309710982,1.0681,3003.0,3002.0,3.76710007]
[1766309711164,0.4812,3002.7,3002.0,0.001]
[1766309711340,0.01001067,3003.1,3002.0,0.001]
[1766309711541,0.01001067,3002.7,3001.9,0.001]
[1766309711756,1.0681,3002.0,3001.3,0.13344565]
[1766309711955,0.4812,3001.7,3001.0,0.435]
[1766309712169,0.4812,3001.7,3001.1,3.33211007]
[1766309712447,0.4812,3001.7,3001.2,0.37671101]
[1766309712849,0.4812,3001.7,3001.0,3.76719548]
[1766309713072,0.4812,3001.7,3001.1,3.33210598]
[1766309713377,0.4812,3001.7,3001.0,3.76720895]
[1766309713877,0.4812,3001.7,3001.1,3.33210009]
[1766309714244,0.4812,3001.7,3001.0,0.435]
[1766309714796,1.0681,3001.5,3000.9,0.001]
[1766309714943,1.1014947,3001.4,3000.5,0.001]
[1766309715147,1.0681,3001.4,3000.5,0.001]
[1766309715468,0.44401067,3001.7,3000.5,0.001]
[1766309715469,1.0681,3001.2,3000.5,0.001]
[1766309715972,1.0681,3000.9,3000.1,0.436]
[1766309716552,1.0681,3000.9,3000.1,0.001]
[1766309717086,1.0681,3000.7,3000.1,0.001]
[1766309717289,1.0681,3000.6,3000.1,0.001]
[1766309718005,1.0681,3000.4,2999.7,0.001]
[1766309718370,1.0681,3000.4,2999.5,0.001]
[1766309718688,1.0681,3000.2,2999.5,0.001]
[1766309719082,1.0681,3000.0,2999.3,0.001]
[1766309719480,1.0681,3000.0,2998.9,0.001]
[1766309719481,1.0681,2999.6,2998.9,0.001]
[1766309719684,1.0681,2999.7,2998.9,0.001]
[1766309720183,0.4812,2999.8,2999.1,6.66864813]
[1766309720382,0.4812,2999.8,2999.1,3.3343145]
[1766309720580,0.4812,2999.8,2999.2,0.66687561]
[1766309720769,1.0681,3000.4,2999.2,0.66687561]
[1766309720970,1.0681,3000.4,2999.3,6.66822258]
[1766309721173,1.0681,3000.4,2999.4,0.435]
[1766309722472,0.434,3000.6,2999.4,0.435]
[1766309722674,1.0681,3000.7,2999.5,1.04373339]
[1766309722913,1.0681,3001.1,2999.7,26.626675]
[1766309723068,1.0681,3001.1,2999.8,10.00066671]
[1766309724573,1.6393,3001.5,3000.1,5.91865547]
[1766309724772,1.6393,3001.5,3000.2,0.435]
[1766309724977,0.434,3001.7,3000.1,5.91865547]
[1766309724978,0.434,3001.7,3000.3,6.66600006]
[1766309725186,0.434,3001.7,3000.4,0.435]
[1766309725187,1.183,3001.4,3000.4,0.435]
[1766309726983,1.183,3001.4,3000.5,6.66555574]
[1766309727172,1.183,3001.4,3000.6,0.66687561]
[1766309727584,1.6393,3001.4,3000.7,0.435]
[1766309729007,0.4563,3002.2,3000.7,0.435]
[1766309729171,1.6393,3002.2,3000.8,6.6982138]
[1766309729368,1.6393,3002.2,3000.9,0.71332138]
[1766309729583,1.183,3001.9,3000.9,0.71332138]
[1766309729788,1.183,3001.9,3001.0,0.435]
[1766309729789,1.183,3001.8,3001.0,0.435]
[1766309730191,1.183,3001.8,3000.9,0.71332138]
[1766309730192,1.183,3001.8,3001.1,0.435]
[1766309730391,1.4,3003.4,3001.1,0.435]
[1766309730392,1.183,3002.8,3001.2,0.03332]
[1766309730593,1.183,3002.6,3001.3,0.63869755]
[1766309730883,0.4563,3002.7,3001.6,5.91865547]
[1766309731085,0.4563,3002.7,3001.8,6.66266906]
[1766309731290,1.183,3002.9,3001.8,3.33133453]
[1766309731476,1.183,3002.5,3001.9,0.435]
[1766309731908,0.4563,3002.6,3001.9,0.435]
[1766309732402,0.4563,3002.6,3001.7,6.66288602]
[1766309732700,0.4563,3002.6,3001.8,1.1012886]
[1766309732896,0.002,3002.7,3001.8,1.1012886]
[1766309733101,1.6393,3003.2,3001.9,6.6624471]
[1766309733691,0.4563,3003.1,3001.9,3.33122355]
[1766309733892,3.32982163,3003.2,3002.0,0.435]
[1766309734214,1.6393,3002.9,3002.0,0.87825122]
[1766309734381,1.183,3002.9,3002.0,0.87825122]
[1766309735476,1.183,3002.9,3002.0,4.20929306]
[1766309735677,1.6757,3002.9,3002.0,0.87825122]
[1766309736014,1.1307,3002.8,3002.0,0.87825122]
[1766309736311,1.6234,3002.8,3002.0,0.44325122]
[1766309736512,1.1307,3002.7,3002.1,0.435]
[1766309736810,1.1307,3003.0,3002.2,0.435]
[1766309737321,1.15865146,3003.1,3002.2,0.435]